bitfinex-derivatives/quotes_SOLF0:USTF0_20250106
["timestamp","ask_amount","ask_price","bid_price","bid_amount"]
[1736121984548,2.3409,213.64,213.59,2.3414]
[1736121984745,2.58,213.63,213.59,2.3414]
[1736121985943,2.341,213.63,213.59,2.3414]
[1736121986149,4.921,213.63,213.59,2.3414]
[1736121986847,4.921,213.63,213.5,2.58]
[1736121986848,2.3412,213.61,213.5,2.58]
[1736121987153,7.39680529,213.6,213.53,7.39680529]
[1736121987352,9.73810529,213.6,213.55,2.3418]
[1736121987556,7.39680529,213.6,213.55,2.3418]
[1736121987952,7.39680529,213.58,213.54,2.3419]
[1736121988956,9.73830529,213.58,213.54,2.3419]
[1736121990254,12.31830529,213.58,213.54,2.3419]
[1736121990958,9.97680529,213.58,213.5,1.4441]
[1736121991153,7.39680529,213.56,213.5,1.4441]
[1736121992556,2.3419,213.55,213.5,3.7865]
[1736121993558,2.342,213.54,213.5,2.3424]
[1736121993760,7.39680529,213.54,213.49,9.00469997]
[1736121995463,2.3421,213.53,213.49,9.00469997]
[1736121995863,4.9221,213.53,213.49,9.00469997]
[1736121998367,4.9221,213.53,213.49,2.3425]
[1736122000862,2.58,213.53,213.49,2.3425]
[1736122001368,2.58,213.55,213.51,7.39680529]
[1736122001668,2.58,213.56,213.51,7.39680529]
[1736122003469,2.58,213.56,213.51,9.73900529]
[1736122004372,2.58,213.56,213.52,2.3421]
[1736122005272,14.40463904,213.59,213.56,2.3417]
[1736122005273,7.00783375,213.59,213.56,2.3417]
[1736122005473,9.58783375,213.59,213.56,2.3417]
[1736122007871,2.3408,213.64,213.6,2.3413]
[1736122008067,2.58,213.63,213.6,2.3413]
[1736122009069,127.73902651,213.75,213.6,2.3413]
[1736122009278,2.3407,213.66,213.61,7.39680529]
[1736122010375,73.61313771,213.65,213.6,2.3413]
[1736122010574,71.27243771,213.65,213.59,7.39680529]
[1736122011469,2.3409,213.64,213.59,9.73820529]
[1736122013174,2.3409,213.64,213.6,2.3413]
[1736122013877,7.39680529,213.64,213.53,2.58]
[1736122014178,2.341,213.63,213.57,7.39680529]
[1736122015477,2.341,213.63,213.59,2.3414]
[1736122016377,9.73790529,213.62,213.58,2.3415]
[1736122016777,12.31790529,213.62,213.58,2.3415]
[1736122016977,9.97680529,213.62,213.58,2.3415]
[1736122017578,2.58,213.62,213.58,2.3415]
[1736122018278,2.58,213.62,213.57,7.39680529]
[1736122018481,2.58,213.62,213.59,2.3414]
[1736122021681,2.58,213.62,213.58,2.3415]
[1736122021981,4.9211,213.62,213.58,2.3415]
[1736122022175,7.39680529,213.6,213.53,7.39680529]
[1736122022977,9.73820529,213.6,213.55,2.3417]
[1736122023279,9.73820529,213.6,213.53,7.39680529]
[1736122023481,2.3414,213.6,213.55,7.39680529]
[1736122024581,2.3414,213.6,213.56,2.3417]
[1736122026676,9.73820529,213.6,213.56,2.3417]
[1736122027078,9.73840529,213.58,213.54,2.3418]
[1736122027377,2.58,213.57,213.52,8.79350529]
[1736122027581,2.58,213.57,213.52,1.3967]
[1736122028481,2.58,213.57,213.53,2.342]
[1736122029282,4.9216,213.57,213.53,2.342]
[1736122030286,2.58,213.57,213.51,2.3423]
[1736122030485,7.39680529,213.56,213.51,2.3423]
[1736122031785,2.3417,213.56,213.52,2.3421]
[1736122033883,69.38748594,213.61,213.53,7.39680529]
[1736122034080,2.3414,213.59,213.55,9.73860529]
[1736122034692,2.3414,213.59,213.55,7.39680529]
[1736122035192,2.3415,213.58,213.55,7.39680529]
[1736122035587,2.3415,213.58,213.54,2.3419]
[1736122040695,69.38748594,213.61,213.57,7.39680529]
[1736122042298,71.72868594,213.61,213.57,9.73830529]
[1736122043299,71.72868594,213.61,213.57,2.3415]
[1736122043998,69.38748594,213.61,213.58,7.39680529]
[1736122044199,69.38748594,213.61,213.58,9.73830529]
[1736122047997,69.38748594,213.61,213.58,7.39680529]
[1736122048910,69.38748594,213.61,213.57,2.3416]
[1736122050399,4.4246,213.7,213.6,7.39680529]
[1736122050599,7.39680529,213.68,213.6,9.73810529]
[1736122051303,2.3409,213.64,213.6,9.73810529]
[1736122051492,2.3409,213.64,213.6,2.3413]
[1736122052302,2.3409,213.64,213.6,9.73810529]
[1736122053706,9.97680529,213.66,213.62,2.341]
[1736122054104,2.58,213.66,213.62,2.341]
[1736122054898,2.9407,213.7,213.54,1.3856]
[1736122055104,2.58,213.7,213.64,7.39680529]
[1736122055303,7.39680529,213.71,213.64,7.39680529]
[1736122055508,2.58,213.71,213.66,9.73730529]
[1736122055806,2.58,213.72,213.66,7.39680529]
[1736122056009,4.9201,213.72,213.67,2.3405]
[1736122056203,2.58,213.72,213.66,7.39680529]
[1736122056604,2.3402,213.71,213.66,7.39680529]
[1736122058505,2.58,213.72,213.66,7.39680529]
[1736122058707,2.3402,213.7,213.66,7.39680529]
[1736122060602,2.3402,213.7,213.65,2.3406]
[1736122063915,2.3402,213.7,213.66,2.3406]
[1736122067616,4.9201,213.71,213.66,2.3406]
[1736122067814,4.9201,213.71,213.64,7.39680529]
[1736122068021,4.9201,213.71,213.67,2.3405]
[1736122071521,1.5083,213.76,213.68,7.39680529]
[1736122071820,7.08220473,213.77,213.72,7.39680529]
[1736122072319,7.08220473,213.77,213.74,7.39680529]
[1736122072514,1.4229,213.82,213.64,72.02976916]
[1736122072515,2.58,213.8,213.76,7.39680529]
[1736122072712,127.73902651,213.86,213.78,7.39680529]
[1736122072913,2.58,213.85,213.8,7.39680529]
[1736122073117,8.84720529,213.88,213.8,7.39680529]
[1736122073417,6.3485,213.87,213.81,2.339]
[1736122073619,4.0101,213.87,213.8,7.39680529]
[1736122074011,2.3386,213.86,213.8,7.39680529]
[1736122074213,7.39680529,213.86,213.75,2.58]
[1736122074410,7.39680529,213.84,213.75,2.58]
[1736122074614,2.3388,213.83,213.77,9.73610529]
[1736122074912,2.3388,213.83,213.77,2.3393]
[1736122075219,2.3391,213.8,213.75,7.39680529]
[1736122077117,2.3391,213.8,213.75,9.73640529]
[1736122077312,9.97680529,213.82,213.75,7.39680529]
[1736122077610,2.3392,213.79,213.75,7.39680529]
[1736122078723,2.3392,213.79,213.74,2.3398]
[1736122078918,2.3392,213.79,213.75,7.39680529]
[1736122080327,2.3392,213.79,213.77,7.39680529]
[1736122080520,2.3391,213.8,213.77,7.39680529]
[1736122080717,2.58,213.82,213.77,7.39680529]
[1736122080917,2.58,213.85,213.79,7.39680529]
[1736122082420,2.3388,213.83,213.79,7.39680529]
[1736122088023,2.58,213.85,213.73,2.58]
[1736122088024,2.3391,213.8,213.73,2.58]
[1736122088321,2.3391,213.8,213.75,7.39680529]
[1736122089029,2.3391,213.8,213.76,2.3395]
[1736122091024,2.3391,213.81,213.77,2.3394]
[1736122091229,7.39680529,213.84,213.77,9.73620529]
[1736122091526,7.39680529,213.84,213.77,7.39680529]
[1736122091719,2.3389,213.82,213.78,2.3393]
[1736122091923,2.3389,213.82,213.77,7.39680529]
[1736122093229,2.3389,213.82,213.77,9.73610529]
[1736122093931,2.3387,213.84,213.8,2.3391]
[1736122094827,2.58,213.85,213.79,7.39680529]
[1736122095024,2.3389,213.83,213.78,2.3392]
[1736122099231,2.3391,213.81,213.77,7.39680529]
[1736122100530,7.39680529,213.82,213.75,7.39680529]
[1736122101637,2.3391,213.8,213.75,9.73640529]
[1736122102025,7.39680529,213.82,213.75,9.73640529]
[1736122102231,2.3393,213.79,213.73,2.58]
[1736122102535,2.58,213.8,213.74,2.3397]
[1736122102733,9.97680529,213.8,213.74,2.3397]
[1736122103540,2.3394,213.78,213.74,2.3397]
[1736122103832,1.4301,213.87,213.75,9.73640529]
[1736122104033,2.3387,213.84,213.79,7.39680529]
[1736122104237,2.58,213.86,213.79,7.39680529]
[1736122104537,2.3385,213.86,213.81,9.73570529]
[1736122105840,4.0101,213.87,213.81,9.73570529]
[1736122106036,2.3386,213.85,213.81,9.73570529]
[1736122109840,2.3385,213.86,213.82,2.3389]
[1736122110342,2.58,213.87,213.82,2.3389]
[1736122110537,7.39680529,213.84,213.71,13.38415536]
[1736122110741,7.39680529,213.84,213.75,7.39680529]
[1736122111339,2.339,213.82,213.77,2.3394]
[1736122114144,2.339,213.82,213.77,9.73620529]
[1736122121543,2.3391,213.81,213.77,9.73620529]
[1736122121746,9.97680529,213.82,213.75,7.39680529]
[1736122121951,7.39680529,213.78,213.73,2.3398]
[1736122122449,7.39680529,213.76,213.71,1.4126]
[1736122122840,2.58,213.77,213.69,9.73700529]
[1736122122841,7.39680529,213.74,213.69,7.39680529]
[1736122123046,2.3399,213.73,213.69,7.39680529]
[1736122123843,2.3399,213.73,213.68,2.3404]
[1736122124848,2.3399,213.73,213.69,2.3403]
[1736122128051,2.3393,213.78,213.74,2.3397]
[1736122128249,1.4961,213.81,213.65,2.9784]
[1736122128250,2.58,213.79,213.76,7.39680529]
[1736122129458,4.9193,213.79,213.76,7.39680529]
[1736122133057,4.9193,213.79,213.74,9.73660529]
[1736122133755,4.9193,213.79,213.74,7.39680529]
[1736122133957,4.9193,213.79,213.75,2.3396]
[1736122134757,4.9193,213.79,213.74,7.39680529]
[1736122134964,4.9193,213.79,213.74,9.73650529]
[1736122137767,4.9193,213.79,213.74,2.3397]
[1736122142373,12.31610529,213.79,213.74,2.3397]
[1736122142570,7.39680529,213.77,213.66,2.58]
[1736122142868,7.39680529,213.77,213.69,7.39680529]
[1736122143272,2.3396,213.76,213.71,2.34]
[1736122144174,2.3396,213.76,213.71,9.73680529]
[1736122144371,2.3396,213.76,213.72,2.34]
[1736122146274,5.93727527,213.85,213.71,7.39680529]
[1736122146566,7.39680529,213.85,213.77,7.39680529]
[1736122146775,2.58,213.84,213.77,7.39680529]
[1736122146975,2.58,213.84,213.79,2.3392]
[1736122147665,7.39680529,213.85,213.79,2.3392]
[1736122147864,2.58,213.84,213.79,2.3392]
[1736122148070,2.58,213.84,213.79,7.39680529]
[1736122148378,2.58,213.84,213.81,2.339]
[1736122148976,2.58,213.85,213.81,2.339]
[1736122149173,2.58,213.85,213.82,2.3388]
[1736122149380,2.58,213.85,213.81,7.39680529]
[1736122149972,2.58,213.85,213.82,2.3389]
[1736122150476,2.58,213.85,213.81,9.73580529]
[1736122153678,73.92337162,213.88,213.83,7.39680529]
[1736122153877,76.50337162,213.88,213.83,7.39680529]
[1736122154773,73.92337162,213.88,213.83,7.39680529]
[1736122155479,73.92337162,213.88,213.84,2.3387]
[1736122155777,2.3382,213.89,213.84,2.3387]
[1736122155979,127.73902651,214.05,213.87,7.39680529]
[1736122156176,2.3374,213.96,213.9,2.338]
[1736122156679,4.9174,213.96,213.9,2.338]
[1736122160076,2.3375,213.95,213.9,2.338]
[1736122160277,7.39680529,213.95,213.87,7.39680529]
[1736122161581,2.3377,213.94,213.87,7.39680529]
[1736122162683,2.3377,213.94,213.89,2.3381]
[1736122163477,2.3377,213.94,213.89,7.39680529]
[1736122165384,7.39680529,213.95,213.85,2.9947]
[1736122165584,2.3379,213.92,213.87,2.3383]
[1736122165780,7.39680529,213.93,213.85,10.39150529]
[1736122166282,7.39680529,213.91,213.85,10.39150529]
[1736122166685,7.39680529,213.91,213.85,7.39680529]
[1736122166885,9.73480529,213.91,213.85,9.73530529]
[1736122167086,7.39680529,213.89,213.84,1.4383]
[1736122167478,9.73500529,213.89,213.84,1.4383]
[1736122167677,7.39680529,213.89,213.84,1.4383]
[1736122168084,7.39680529,213.87,213.82,2.3388]
[1736122169487,2.3385,213.86,213.82,2.3388]
[1736122171685,7.39680529,213.87,213.73,1.4138]
[1736122171985,2.3386,213.85,213.8,2.3391]
[1736122172185,2.58,213.86,213.8,2.3391]
[1736122172388,2.3387,213.84,213.8,2.3391]
[1736122175890,9.73540529,213.85,213.8,2.3391]
[1736122177095,2.3386,213.85,213.8,2.3391]
[1736122179501,2.3386,213.85,213.79,7.39680529]
[1736122179799,2.3386,213.85,213.81,2.339]
[1736122185499,2.9514,213.94,213.83,7.39680529]
[1736122185699,2.58,213.93,213.88,7.39680529]
[1736122186301,2.3379,213.92,213.88,7.39680529]
[1736122186794,2.58,213.91,213.88,7.39680529]
[1736122187901,2.3379,213.92,213.81,1.5151]
[1736122187902,127.73902651,214.06,213.9,7.39680529]
[1736122188102,2.58,213.95,213.9,7.39680529]
[1736122188306,2.58,213.95,213.91,2.3378]
[1736122188499,2.58,213.94,213.91,2.3378]
[1736122189899,7.90464692,213.96,213.93,2.3377]
[1736122190095,10.48464692,213.96,213.93,2.3377]
[1736122191905,2.58,213.98,213.95,2.3375]
[1736122193299,2.58,213.98,213.94,7.39680529]
[1736122194808,2.58,213.99,213.94,9.73440529]
[1736122202315,2.337,214.0,213.94,9.73440529]
[1736122202316,2.58,214.0,213.94,7.39680529]
[1736122202517,2.58,214.0,213.96,7.39680529]
[1736122203411,2.58,214.0,213.91,4.387]
[1736122203412,80.77925053,214.05,213.98,7.39680529]
[1736122203608,80.77925053,214.05,214.04,7.39680529]
[1736122203813,2.58,214.09,214.04,7.39680529]
[1736122204022,2.58,214.16,214.08,7.39680529]
[1736122204217,8.14938993,214.15,214.08,7.39680529]
[1736122204412,0.75258464,214.14,214.08,7.39680529]
[1736122204613,2.3356,214.12,214.08,7.39680529]
[1736122205113,7.39680529,214.15,214.08,7.39680529]
[1736122205114,2.3353,214.15,214.08,7.39680529]
[1736122205314,7.39680529,214.16,214.08,7.39680529]
[1736122205611,2.58,214.16,214.1,7.39680529]
[1736122207719,7.39680529,214.17,214.1,7.39680529]
[1736122208014,80.73253814,214.18,214.1,7.39680529]
[1736122208218,80.73253814,214.18,214.12,7.39680529]
[1736122208419,2.58,214.19,214.12,7.39680529]
[1736122210122,7.39680529,214.14,214.07,7.39680529]
[1736122210624,7.39680529,214.14,214.08,2.336]
[1736122210824,7.39680529,214.16,214.09,7.39680529]
[1736122211025,7.39680529,214.18,214.11,7.39680529]
[1736122211816,7.39680529,214.18,214.08,2.3359]
[1736122212117,7.39680529,214.14,214.07,7.39680529]
[1736122212517,7.39680529,214.14,214.07,9.73290529]
[1736122213819,7.39680529,214.16,214.09,7.39680529]
[1736122214222,7.39680529,214.18,214.11,7.39680529]
[1736122217123,7.39680529,214.16,214.11,7.39680529]
[1736122217322,7.39680529,214.16,214.08,2.3359]
[1736122217524,7.39680529,214.16,214.09,7.39680529]
[1736122220921,7.39680529,214.16,214.1,7.39680529]
[1736122222019,1.4596,214.19,214.06,2.3363]
[1736122222020,7.39680529,214.14,214.06,2.3363]
[1736122222224,7.39680529,214.14,214.07,7.39680529]
[1736122222625,7.39680529,214.14,214.07,9.73290529]
[1736122223226,7.39680529,214.14,214.09,7.39680529]
[1736122224031,7.39680529,214.18,214.11,7.39680529]
[1736122226533,7.39680529,214.16,214.11,7.39680529]
[1736122228834,7.39680529,214.16,214.09,9.73270529]
[1736122229738,7.39680529,214.16,214.09,7.39680529]
[1736122229936,7.39680529,214.14,214.04,4.468]
[1736122230131,7.39680529,214.12,214.05,7.39680529]
[1736122231543,7.39680529,214.12,214.05,9.73320529]
[1736122233145,7.39680529,214.12,214.07,7.39680529]
[1736122233949,7.39680529,214.14,214.07,7.39680529]
[1736122234643,2.9101,214.19,214.09,7.39680529]
[1736122234844,2.58,214.18,214.13,7.39680529]
[1736122235150,9.97680529,214.2,214.13,7.39680529]
[1736122237055,2.58,214.2,214.13,7.39680529]
[1736122239552,15.18425009,214.21,214.13,7.39680529]
[1736122239749,17.76425009,214.21,214.13,7.39680529]
[1736122241159,15.18425009,214.21,214.13,7.39680529]
[1736122241550,17.76425009,214.21,214.13,7.39680529]
[1736122242152,7.39680529,214.19,214.13,7.39680529]
[1736122242550,7.39680529,214.19,214.11,9.73250529]
[1736122242953,7.39680529,214.19,214.08,2.58]
[1736122243155,7.39680529,214.17,214.09,7.39680529]
[1736122243555,7.39680529,214.17,214.11,7.39680529]
[1736122244452,7.39680529,214.18,214.11,7.39680529]
[1736122247451,7.39680529,214.2,214.13,7.39680529]
[1736122257464,7.39680529,214.25,214.17,7.39680529]
[1736122257656,0.75226265,214.24,214.19,7.39680529]
[1736122258060,9.97680529,214.25,214.19,7.39680529]
[1736122258261,0.75226032,214.24,214.19,7.39680529]
[1736122258759,2.3344,214.23,214.19,7.39680529]
[1736122258958,7.39680529,214.27,214.21,7.39680529]
[1736122259264,0.75224373,214.26,214.21,7.39680529]
[1736122259456,2.3342,214.26,214.21,7.39680529]
[1736122259655,2.3342,214.26,214.23,7.39680529]
[1736122260065,2.3342,214.25,214.23,7.39680529]
[1736122261169,7.39680529,214.28,214.23,7.39680529]
[1736122261371,2.3341,214.26,214.23,7.39680529]
[1736122262969,2.3341,214.26,214.21,7.39680529]
[1736122263170,2.3343,214.24,214.21,7.39680529]
[1736122263368,2.3343,214.24,214.19,7.39680529]
[1736122263568,7.39680529,214.24,214.14,4.3682]
[1736122263763,2.3345,214.22,214.17,9.97680529]
[1736122264771,7.39680529,214.24,214.17,9.97680529]
[1736122265070,2.3346,214.21,214.17,9.97680529]
[1736122265769,2.3347,214.2,214.17,9.97680529]
[1736122266069,2.3347,214.2,214.17,7.39680529]
[1736122266671,7.39680529,214.24,214.17,7.39680529]
[1736122266879,2.3346,214.21,214.17,7.39680529]
[1736122267975,2.3345,214.22,214.17,9.73180529]
[1736122268269,7.39680529,214.22,214.15,9.97680529]
[1736122268569,2.3347,214.2,214.15,12.31200529]
[1736122268774,2.3347,214.2,214.15,9.97680529]
[1736122270489,2.3347,214.2,214.16,2.3351]
[1736122271681,2.3347,214.2,214.15,4.9152]
[1736122271974,7.39680529,214.16,214.08,2.58]
[1736122272175,7.39680529,214.16,214.09,7.39680529]
[1736122272380,2.3353,214.15,214.1,2.3358]
[1736122272574,7.39680529,214.16,214.1,2.3358]
[1736122272972,7.39680529,214.14,214.09,2.3359]
[1736122273175,7.39680529,214.14,214.07,7.39680529]
[1736122273376,7.39680529,214.14,214.05,7.39680529]
[1736122273781,9.97680529,214.14,214.05,7.39680529]
[1736122273981,7.39680529,214.12,214.04,7.39680529]
[1736122274276,2.3358,214.1,214.04,7.39680529]
[1736122275376,9.73290529,214.08,214.02,4.2453]
[1736122275576,9.73290529,214.08,214.02,2.7755]
[1736122275879,12.31290529,214.08,214.02,2.7755]
[1736122276377,12.31290529,214.08,214.02,5.1122]
[1736122276681,4.9161,214.08,214.02,5.1122]
[1736122278480,4.9161,214.08,214.03,2.3366]
[1736122278676,2.3363,214.07,214.02,1.3906]
[1736122278982,7.39680529,214.07,214.01,14.43871912]
[1736122279977,7.39680529,214.07,214.01,4.70511383]
[1736122280177,9.73320529,214.05,213.99,7.39680529]
[1736122280578,7.39680529,214.05,213.97,7.39680529]
[1736122281578,2.3365,214.04,213.98,2.337]
[1736122282284,2.3365,214.04,213.99,2.337]
[1736122283189,2.3366,214.03,213.97,9.73390529]
[1736122283484,2.3366,214.03,213.97,7.39680529]
[1736122283786,7.39680529,214.05,213.97,7.39680529]
[1736122284486,2.3365,214.04,213.98,2.3371]
[1736122284683,7.39680529,214.03,213.96,8.91090529]
[1736122284888,2.58,214.02,213.96,8.91090529]
[1736122285485,2.58,214.02,213.97,2.3371]
[1736122286688,2.58,214.02,213.98,9.73380529]
[1736122287687,2.58,214.06,214.0,7.39680529]
[1736122287888,2.58,214.06,214.03,7.39680529]
[1736122288189,2.93,214.09,214.03,7.39680529]
[1736122288387,2.58,214.08,214.03,7.39680529]
[1736122289588,2.58,214.08,214.03,9.73340529]
[1736122290591,2.58,214.07,214.03,9.73340529]
[1736122291083,2.58,214.07,214.03,7.39680529]
[1736122291390,2.58,214.07,214.02,2.3367]
[1736122291391,2.58,214.07,214.02,7.39680529]
[1736122292491,4.9161,214.07,214.02,7.39680529]
[1736122296488,2.3363,214.06,214.0,9.73360529]
[1736122296691,2.3363,214.06,214.01,2.3368]
[1736122297194,2.58,214.07,214.02,9.73350529]
[1736122300289,4.9161,214.07,214.02,7.39680529]
[1736122300493,4.9161,214.07,214.01,2.3368]
[1736122302697,2.58,214.07,214.01,2.3368]
[1736122302894,9.73310529,214.06,213.99,2.337]
[1736122303102,7.39680529,214.04,213.96,2.978]
[1736122303396,7.39680529,214.04,213.97,7.39680529]
[1736122304597,2.3366,214.03,213.98,2.3371]
[1736122306400,2.3366,214.03,213.99,2.337]
[1736122306599,2.3366,214.03,213.99,9.73380529]
[1736122308300,7.39680529,214.08,214.01,7.39680529]
[1736122308497,2.6,214.07,214.01,9.73360529]
[1736122310402,2.3363,214.06,214.01,9.73360529]
[1736122313109,2.3364,214.05,214.0,2.3369]
[1736122313300,7.39680529,214.06,213.99,7.39680529]
[1736122313814,2.3365,214.04,213.99,9.73380529]
[1736122315200,9.73350529,214.03,213.97,2.3372]
[1736122315506,2.6,214.02,213.97,2.3372]
[1736122318306,2.6,214.02,213.97,9.73400529]
[1736122318502,4.9367,214.02,213.97,9.73400529]
[1736122320608,4.9367,214.02,213.98,2.3371]
[1736122324108,7.39680529,214.01,213.92,76.02011804]
[1736122324312,7.39680529,213.99,213.92,8.88610529]
[1736122324515,7.39680529,213.99,213.9,2.934]
[1736122324516,7.39680529,213.99,213.9,10.33080529]
[1736122324704,2.3374,213.96,213.9,12.66880529]
[1736122324905,2.3374,213.96,213.9,10.33080529]
[1736122325205,2.6,213.97,213.9,10.33080529]
[1736122325809,4.9372,213.97,213.92,9.73450529]
[1736122326408,4.9372,213.97,213.93,2.3377]
[1736122327809,4.9372,213.97,213.92,9.73450529]
[1736122328410,4.9372,213.97,213.92,7.39680529]
[1736122329007,2.3373,213.96,213.91,2.3379]
[1736122332815,2.3373,213.96,213.92,7.39680529]
[1736122333016,4.9372,213.97,213.92,7.39680529]
[1736122335419,9.99680529,213.97,213.89,2.3381]
[1736122335627,7.39680529,213.95,213.88,7.39680529]
[1736122336421,2.3377,213.93,213.88,9.73500529]
[1736122336622,2.6,213.92,213.88,9.73500529]
[1736122338522,2.6,213.92,213.89,7.39680529]
[1736122338719,2.6,213.92,213.91,7.39680529]
[1736122340024,2.6,213.92,213.9,2.3379]
[1736122341622,2.6,213.92,213.89,7.39680529]
[1736122342825,2.6,213.92,213.83,3.0504]
[1736122343029,2.6,213.92,213.84,7.39680529]
[1736122343030,9.99680529,213.92,213.84,7.39680529]
[1736122343823,2.338,213.9,213.85,2.3384]
[1736122344231,2.338,213.9,213.86,2.3383]
[1736122344535,9.99680529,213.92,213.86,2.3383]
[1736122344727,2.3378,213.91,213.86,2.3383]
[1736122345531,9.99680529,213.92,213.86,2.3383]
[1736122345730,12.33450529,213.92,213.86,2.3383]
[1736122347634,12.33450529,213.92,213.86,9.73510529]
[1736122347835,9.99680529,213.92,213.86,7.39680529]
[1736122348132,2.6,213.92,213.86,7.39680529]
[1736122348341,2.6,213.92,213.88,2.338]
[1736122349232,2.6,213.92,213.83,3.0504]
[1736122349233,7.39680529,213.9,213.86,2.3383]
[1736122351127,7.39680529,213.9,213.79,4.4689479]
[1736122351322,7.39680529,213.9,213.83,7.39680529]
[1736122352129,9.73470529,213.9,213.86,2.3383]
[1736122352433,7.39680529,213.9,213.86,2.3383]
[1736122353132,12.33450529,213.92,213.87,2.3382]
[1736122354836,12.33450529,213.92,213.86,2.3383]
[1736122356238,2.3378,213.91,213.86,2.3383]
[1736122356432,7.39680529,213.88,213.84,2.3386]
[1736122356631,7.39680529,213.88,213.81,7.39680529]
[1736122356831,2.6,213.87,213.81,7.39680529]
[1736122357535,2.6,213.87,213.83,2.3387]
[1736122361740,2.6,213.87,213.81,9.73560529]
[1736122361949,2.6,213.87,213.81,7.39680529]
[1736122362542,4.9383,213.87,213.82,2.3388]
[1736122366749,4.9383,213.87,213.83,9.73550529]
[1736122366938,2.3379,213.91,213.85,7.39680529]
[1736122367142,2.6,213.9,213.85,7.39680529]
[1736122367938,2.3379,213.91,213.85,7.39680529]
[1736122368148,2.6,213.89,213.85,7.39680529]
[1736122368544,2.6,213.89,213.86,2.3383]
[1736122368851,2.6,213.89,213.83,7.39680529]
[1736122369543,9.73500529,213.88,213.83,2.3386]
[1736122370447,2.3383,213.87,213.82,2.3388]
[1736122370949,2.3383,213.87,213.81,9.73570529]
[1736122371138,7.39680529,213.88,213.81,9.73570529]
[1736122371338,2.6,213.89,213.79,4.4689479]
[1736122371339,7.39680529,213.84,213.79,4.4689479]
[1736122371546,9.99680529,213.84,213.79,4.4689479]
[1736122372242,9.99680529,213.84,213.78,1.4944]
[1736122372438,12.33550529,213.84,213.79,2.3391]
[1736122373050,7.39680529,213.82,213.75,77.26021092]
[1736122373239,2.6,213.84,213.75,76.65401092]
[1736122373240,9.73580529,213.8,213.75,76.65401092]
[1736122374152,7.39680529,213.8,213.75,2.3395]
[1736122374451,2.6,213.79,213.75,2.3395]
[1736122375150,7.39680529,213.78,213.75,2.3395]
[1736122376746,7.39680529,213.78,213.71,1.4662]
[1736122376947,7.39680529,213.78,213.73,2.3398]
[1736122377345,7.39680529,213.78,213.74,2.3397]
[1736122377546,2.3394,213.77,213.71,1.4662]
[1736122377849,7.39680529,213.76,213.71,1.4662]
[1736122378246,7.39680529,213.76,213.69,7.39680529]
[1736122378551,9.73640529,213.76,213.71,2.34]
[1736122378750,7.39680529,213.76,213.71,2.34]
[1736122379063,2.3396,213.75,213.7,2.3401]
[1736122379252,7.39680529,213.72,213.65,11.58600529]
[1736122379550,2.6,213.71,213.65,11.58600529]
[1736122379947,2.6,213.71,213.67,2.3404]
[1736122380148,2.6,213.71,213.65,8.79030529]
[1736122380353,7.39680529,213.7,213.65,1.3935]
[1736122380554,7.39680529,213.7,213.63,7.39680529]
[1736122381446,7.39680529,213.68,213.62,6.43528498]
[1736122382048,2.6,213.71,213.59,8.79410529]
[1736122382049,7.39680529,213.66,213.59,8.79410529]
[1736122382252,2.6,213.65,213.59,8.79410529]
[1736122383052,2.6,213.65,213.46,25.68462145]
[1736122383244,2.6,213.65,213.58,7.39680529]
[1736122383445,2.6,213.65,213.61,2.341]
[1736122384048,7.39680529,213.64,213.61,2.341]
[1736122385155,2.6,213.65,213.64,2.3408]
[1736122386957,2.6,213.65,213.62,7.39680529]
[1736122387250,2.6,213.65,213.63,2.3409]
[1736122387661,2.3401,213.71,213.64,2.3408]
[1736122387958,9.99680529,213.7,213.64,7.39680529]
[1736122388160,2.6,213.69,213.64,7.39680529]
[1736122388550,2.6,213.69,213.65,2.3406]
[1736122390158,7.39680529,213.7,213.65,2.3406]
[1736122390359,2.6,213.69,213.65,2.3406]
[1736122392565,7.39680529,213.7,213.65,2.3406]
[1736122392764,2.62,213.69,213.65,2.3406]
[1736122393258,7.39680529,213.68,213.65,2.3406]